Workbook

Sheet Sheet3
A1: Whole Time
B2: P | C2: 1 | D2: 10 | E2: 20 | F2: 25 | G2: 27 | H2: 30 | I2: 40 | J2: 45 | K2: 48 | L2: 50 | M2: 60 | N2: 70 | O2: 75 | P2: 78 | Q2: 80 | R2: 90 | S2: 95 | T2: 100 | U2: 110 | V2: 120 | W2: 130 | X2: 140 | Y2: 150 | Z2: 160
A3: I=10, N = 62500, D = 1000, K = 1000 | B3: Whole Time | C3: 2802 | D3: 392 | E3: 283 | F3: 269 | G3: 264 | H3: 271 | I3: 233
A4: I=10, N = 125000, D = 1000, K = 1000 | B4: Whole Time | C4: 5605 | D4: 622 | E4: 406 | H4: 346 | I4: 331 | J4: 306 | K4: 317 | L4: 319 | M4: 301 | N4: 300 | Q4: 302 | R4: 308 | T4: 307
A5: I=10, N = 250000, D = 1000, K = 1000 | B5: Whole Time | C5: 11210 | D5: 1124 | E5: 671 | H5: 524 | I5: 445 | L5: 409 | M5: 395 | N5: 395 | O5: 384 | P5: 384 | Q5: 385 | R5: 453
A6: I=10, N = 500000, D = 1000, K = 1000 | B6: Whole Time | C6: 22421 | D6: 2160 | E6: 1270 | H6: 922 | I6: 751 | L6: 657 | M6: 574 | N6: 551 | Q6: 560 | R6: 525 | S6: 521 | T6: 539 | U6: 544 | V6: 544 | W6: 574 | X6: 603 | Y6: 605 | Z6: 674
A7: I=10, N = 1000000, D = 1000, K = 1000 | B7: Whole Time | C7: 44842 | E7: 2478 | H7: 1623 | I7: 1328 | L7: 1121 | M7: 986 | N7: 915 | Q7: 820 | R7: 837 | T7: 793 | U7: 780 | V7: 809 | W7: 782 | X7: 795 | Y7: 795 | Z7: 812
A10: SpeedUp
B11: P | C11: 1 | D11: 10 | E11: 20 | F11: 25 | G11: 27 | H11: 30 | I11: 40 | J11: 45 | K11: 48 | L11: 50 | M11: 60 | N11: 70 | O11: 75 | P11: 78 | Q11: 80 | R11: 90 | S11: 95 | T11: 100 | U11: 110 | V11: 120 | W11: 130 | X11: 140 | Y11: 150 | Z11: 160
A12: Theoretic | B12: SpeedUp | C12: 1 | D12: 10 | E12: 20 | F12: 25 | G12: 27 | H12: 30 | I12: 40 | J12: 45 | K12: 48 | L12: 50 | M12: 60
A13: I=10, N = 62500, D = 1000, K = 1000 | B13: SpeedUp | D13: =C3/D3 -> 7.147959184 | E13: =C3/E3 -> 9.901060071 | F13: =C3/F3 -> 10.41635688 | G13: =C3/G3 -> 10.61363636 | H13: =C3/H3 -> 10.33948339
A14: I=10, N = 125000, D = 1000, K = 1000 | B14: SpeedUp | D14: =C4/D4 -> 9.011254019 | E14: =C4/E4 -> 13.80541872 | H14: =C4/H4 -> 16.19942197 | I14: =C4/I4 -> 16.93353474 | J14: =C4/J4 -> 18.31699346 | K14: =C4/K4 -> 17.68138801 | L14: =C4/L4 -> 17.57053292 | M14: =C4/M4 -> 18.62126246 | N14: =C4/N4 -> 18.68333333 | Q14: =C4/Q4 -> 18.55960265 | R14: =C4/R4 -> 18.19805195 | T14: =C4/T4 -> 18.25732899
A15: I=10, N = 250000, D = 1000, K = 1000 | B15: SpeedUp | D15: =C5/D5 -> 9.973309609 | E15: =C5/E5 -> 16.70640835 | H15: =C5/H5 -> 21.39312977 | I15: =C5/I5 -> 25.19101124 | L15: =C5/L5 -> 27.40831296 | M15: =C5/M5 -> 28.37974684 | N15: =C5/N5 -> 28.37974684 | O15: =C5/O5 -> 29.19270833 | P15: =C5/P5 -> 29.19270833 | Q15: =C5/Q5 -> 29.11688312 | R15: =C5/R5 -> 24.74613687
A16: I=10, N = 500000, D = 1000, K = 1000 | B16: SpeedUp | D16: =C6/D6 -> 10.38009259 | E16: =C6/E6 -> 17.65433071 | H16: =C6/H6 -> 24.31778742 | I16: =C6/I6 -> 29.85486019 | L16: =C6/L6 -> 34.12633181 | M16: =C6/M6 -> 39.06097561 | N16: =C6/N6 -> 40.69147005 | Q16: =C6/Q6 -> 40.0375 | R16: =C6/R6 -> 42.70666667 | S16: =C6/S6 -> 43.03454894 | T16: =C6/T6 -> 41.5974026 | U16: =C6/U6 -> 41.21507353 | V16: =C6/V6 -> 41.21507353 | W16: =C6/W6 -> 39.06097561 | X16: =C6/X6 -> 37.18242123 | Y16: =C6/Y6 -> 37.05950413 | Z16: =C6/Z6 -> 33.26557864
A17: I=10, N = 1000000, D = 1000, K = 1000 | B17: SpeedUp | E17: =C7/E7 -> 18.0960452 | H17: =C7/H7 -> 27.62908195 | I17: =C7/I7 -> 33.76656627 | L17: =C7/L7 -> 40.00178412 | M17: =C7/M7 -> 45.47870183 | N17: =C7/N7 -> 49.00765027 | Q17: =C7/Q7 -> 54.68536585 | R17: =C7/R7 -> 53.57467145 | T17: =C7/T7 -> 56.54728878 | U17: =C7/U7 -> 57.48974359 | V17: =C7/V7 -> 55.4289246 | W17: =C7/W7 -> 57.342711 | X17: =C7/X7 -> 56.40503145 | Y17: =C7/Y7 -> 56.40503145 | Z17: =C7/Z7 -> 55.22413793
